fUSD/lending_fUSD_20240803
["ID","MTS","AMOUNT","RATE_DAILY","PERIOD"]
[333968473,1722651070546,-2059.84,0.0001726,2]
[333968474,1722651070556,-942.89,0.0001726,2]
[333968475,1722651070566,-673.02,0.0001726,2]
[333968476,1722651070575,-2054.3,0.0001726,2]
[333968477,1722651070585,-500.0,0.0001726,2]
[333968478,1722651070595,-500.0,0.0001726,2]
[333968479,1722651070605,-500.0,0.0001726,2]
[333968480,1722651070615,-500.0,0.0001726,2]
[333968481,1722651070624,-536.32,0.0001726,2]
[333968482,1722651070634,-1241.54,0.0001726,2]
[333968483,1722651070644,-500.0,0.0001726,2]
[333968484,1722651070654,-1590.63,0.0001726,2]
[333968485,1722651070663,-871.6,0.0001726,2]
[333968486,1722651070673,-1313.97,0.0001726,2]
[333968487,1722651070682,-802.19,0.0001726,2]
[333968488,1722651070692,-2971.93,0.0001726,2]
[333968489,1722651070701,-3990.14,0.0001726,2]
[333968490,1722651070710,-500.0,0.0001726,2]
[333968491,1722651070720,-926.65,0.0001726,2]
[333968492,1722651070729,-2336.97,0.0001726,2]
[333968493,1722651070739,-741.17,0.0001726,2]
[333968494,1722651070748,-523.19,0.0001726,2]
[333968495,1722651070758,-500.0,0.0001726,2]
[333968496,1722651070770,-500.0,0.0001726,2]
[333968497,1722651070780,-500.0,0.0001726,2]
[333968498,1722651070790,-1859.03,0.0001726,2]
[333968499,1722651070799,-1318.07,0.0001726,2]
[333968500,1722651070809,-673.55,0.0001726,2]
[333968501,1722651070818,-505.75,0.0001726,2]
[333968502,1722651070827,-5540.76,0.0001726,2]
[333968503,1722651070837,-540.6,0.0001726,2]
[333968504,1722651070847,-1459.74,0.0001726,2]
[333968505,1722651070856,-3355.43,0.0001726,2]
[333968506,1722651070865,-500.0,0.0001726,2]
[333968507,1722651070875,-600.93,0.0001726,2]
[333968508,1722651070884,-500.0,0.0001726,2]
[333968509,1722651070894,-500.0,0.0001726,2]
[333968510,1722651070903,-500.0,0.0001726,2]
[333968511,1722651070913,-5339.03,0.0001726,2]
[333968512,1722651070922,-500.0,0.0001726,2]
[333968513,1722651070931,-500.0,0.0001726,2]
[333968514,1722651070941,-1543.59,0.0001726,2]
[333968515,1722651070950,-723.18,0.0001726,2]
[333968516,1722651070961,-524.15,0.0001726,2]
[333968517,1722651070971,-500.0,0.0001726,2]
[333968518,1722651070981,-500.0,0.0001726,2]
[333968519,1722651070991,-500.0,0.0001726,2]
[333968520,1722651071000,-691.88,0.0001726,2]
[333968521,1722651071011,-760.85,0.0001726,2]
[333968522,1722651071020,-1015.01,0.0001726,2]
[333968523,1722651071030,-500.0,0.0001726,2]
[333968524,1722651071039,-2306.27,0.0001726,2]
[333968525,1722651071049,-2685.23,0.0001726,2]
[333968526,1722651071059,-895.56,0.0001726,2]
[333968527,1722651071069,-6234.07,0.0001726,2]
[333968528,1722651071079,-1768.15,0.0001726,2]
[333968529,1722651071089,-3831.59,0.0001726,2]
[333968530,1722651071099,-500.0,0.0001726,2]
[333968531,1722651071109,-785.32,0.0001726,2]
[333968532,1722651071119,-1280.72,0.0001726,2]
[333968533,1722651071129,-13292.19,0.0001726,2]
[333968534,1722651071141,-2008.03,0.0001726,2]
[333968535,1722651071150,-500.0,0.0001726,2]
[333968536,1722651071161,-5811.77,0.0001726,2]
[333968537,1722651071171,-500.0,0.0001726,2]
[333968538,1722651071180,-2369.44,0.0001726,2]
[333968539,1722651071190,-905.95,0.0001726,2]
[333968540,1722651071199,-500.0,0.0001726,2]
[333968541,1722651071209,-500.0,0.0001726,2]
[333968542,1722651071219,-2988.16,0.0001726,2]
[333968543,1722651071228,-547.18,0.0001726,2]
[333968544,1722651071238,-500.0,0.0001726,2]
[333968545,1722651071247,-500.0,0.0001726,2]
[333968546,1722651071257,-661.01,0.0001726,2]
[333968547,1722651071268,-500.0,0.0001726,2]
[333968548,1722651071277,-500.0,0.0001726,2]
[333968549,1722651071287,-718.11,0.0001726,2]
[333968550,1722651071296,-500.0,0.0001726,2]
[333968551,1722651071306,-500.0,0.0001726,2]
[333968552,1722651071316,-500.0,0.0001726,2]
[333968553,1722651071325,-1115.98,0.0001726,2]
[333968554,1722651071335,-1760.36,0.0001726,2]
[333968555,1722651071345,-731.82,0.0001726,2]
[333968556,1722651071356,-1319.87,0.0001726,2]
[333968557,1722651071366,-1011.09,0.0001726,2]
[333968558,1722651071375,-1314.38,0.0001726,2]
[333968559,1722651071385,-500.0,0.0001726,2]
[333968560,1722651071394,-500.0,0.0001726,2]
[333968561,1722651071404,-2336.27,0.0001726,2]
[333968562,1722651071413,-611.32,0.0001726,2]
[333968563,1722651071423,-500.0,0.0001726,2]
[333968564,1722651071432,-1121.77,0.0001726,2]
[333968565,1722651071442,-3104.99,0.0001726,2]
[333968566,1722651071451,-2387.61,0.0001726,2]
[333968567,1722651071461,-662.19,0.0001726,2]
[333968568,1722651071471,-2676.4,0.0001726,2]
[333968569,1722651071480,-500.0,0.0001726,2]
[333968570,1722651071490,-500.0,0.0001726,2]
[333968571,1722651071499,-3608.5,0.0001726,2]
[333968572,1722651071508,-617.38,0.0001726,2]
[333968573,1722651071518,-500.0,0.0001726,2]
[333968574,1722651071528,-500.0,0.0001726,2]
[333968575,1722651071537,-151.0,0.0001726,2]
[333968576,1722651071546,-3536.09,0.0001726,2]
[333968577,1722651071556,-500.0,0.0001726,2]
[333968578,1722651071565,-500.0,0.0001726,2]
[333968579,1722651071574,-212.705616,0.0001726,2]
[333968580,1722651071583,-500.0,0.0001726,2]
[333968581,1722651071593,-1328.92,0.0001726,2]
[333968582,1722651071602,-592.28,0.0001726,2]
[333968583,1722651071611,-1252.13,0.0001726,2]
[333968584,1722651071620,-524.52,0.0001726,2]
[333968585,1722651071629,-500.0,0.0001726,2]
[333968586,1722651071638,-500.0,0.0001726,2]
[333968587,1722651071647,-500.0,0.0001726,2]
[333968588,1722651071657,-1830.95,0.0001726,2]
[333968589,1722651071666,-2022.74,0.0001726,2]
[333968590,1722651071675,-372.74359462,0.0001726,2]
[333968591,1722651071685,-860.23,0.0001726,2]
[333968592,1722651071694,-1051.69,0.0001726,2]
[333968593,1722651071703,-1112.85,0.0001726,2]
[333968594,1722651071713,-1191.81,0.0001726,2]
[333968595,1722651071722,-1553.22,0.0001726,2]
[333968596,1722651071731,-500.0,0.0001726,2]
[333968597,1722651071741,-1785.16,0.0001726,2]
[333968598,1722651071750,-1713.96,0.0001726,2]
[333968599,1722651071759,-700.17,0.0001726,2]
[333968600,1722651071772,-1459.44,0.0001726,2]
[333968601,1722651071782,-500.0,0.0001726,2]
[333968602,1722651071791,-1416.37,0.0001726,2]
[333968603,1722651071801,-2830.26,0.0001726,2]
[333968604,1722651071811,-500.0,0.0001726,2]
[333968605,1722651071820,-1346.88,0.0001726,2]
[333968606,1722651071829,-1283.48,0.0001726,2]
[333968607,1722651071838,-551.33,0.0001726,2]
[333968608,1722651071849,-500.0,0.0001726,2]
[333968609,1722651071859,-1632.09,0.0001726,2]
[333968610,1722651071869,-4335.69,0.0001726,2]
[333968611,1722651071878,-866.97,0.0001726,2]
[333968612,1722651071887,-622.24,0.0001726,2]
[333968613,1722651071897,-1262.73,0.0001726,2]
[333968614,1722651071906,-500.0,0.0001726,2]
[333968615,1722651071915,-838.61,0.0001726,2]
[333968616,1722651071925,-1301.11,0.0001726,2]
[333968617,1722651071935,-2317.89,0.0001726,2]
[333968618,1722651071944,-1241.15,0.0001726,2]
[333968619,1722651071954,-2111.76,0.0001726,2]
[333968620,1722651071963,-798.09,0.0001726,2]
[333968621,1722651071973,-1321.13,0.0001726,2]
[333968622,1722651071982,-500.0,0.0001726,2]
[333968623,1722651071991,-500.0,0.0001726,2]
[333968624,1722651072000,-1316.17,0.0001726,2]
[333968625,1722651072010,-1598.37,0.0001726,2]
[333968626,1722651072020,-500.0,0.0001726,2]
[333968627,1722651072029,-2589.6,0.0001726,2]
[333968628,1722651072038,-612.74,0.0001726,2]
[333968629,1722651072047,-4030.14,0.0001726,2]
[333968630,1722651072056,-500.0,0.0001726,2]
[333968631,1722651072066,-4056.49,0.0001726,2]
[333968632,1722651072075,-2452.63,0.0001726,2]
[333968633,1722651072084,-3023.07,0.0001726,2]
[333968634,1722651072094,-2907.39,0.0001726,2]
[333968635,1722651072103,-691.98,0.0001726,2]
[333968636,1722651072112,-500.0,0.0001726,2]
[333968637,1722651072122,-586.19,0.0001726,2]
[333968638,1722651072131,-502.51,0.0001726,2]
[333968639,1722651072140,-1260.73,0.0001726,2]
[333968640,1722651072150,-500.0,0.0001726,2]
[333968641,1722651072159,-1273.58,0.0001726,2]
[333968642,1722651072169,-500.0,0.0001726,2]
[333968643,1722651072178,-500.0,0.0001726,2]
[333968644,1722651072187,-420.52,0.0001727,2]
[333968645,1722651072196,-420.52,0.0001727,2]
[333968646,1722651072206,-834.36,0.0001727,2]
[333968647,1722651072215,-1055.0,0.00017391,2]
[333968648,1722651072224,-727.66580607,0.00017399,2]
[333968649,1722651072233,-753.345,0.00017433,2]
[333968650,1722651072243,-1203.0,0.00017433,2]
[333968651,1722651072252,-150.0,0.00017494,2]
[333968652,1722651072263,-150.0,0.00017494,2]
[333968653,1722651072272,-2475.27130933,0.000175,2]
[333968654,1722651072281,-154.59494864,0.00017525,2]
[333968655,1722651072290,-153.70725901,0.00017531,2]
[333968656,1722651072299,-500.0,0.00017533,2]
[333968657,1722651072309,-2395.58,0.00017533,2]
[333968658,1722651072318,-3299.88,0.00017533,2]
[333968659,1722651072327,-1158.25,0.00017533,2]
[333968660,1722651072336,-1681.21,0.00017533,2]
[333968661,1722651072345,-2416.37,0.00017533,2]
[333968662,1722651072356,-2939.25,0.00017533,2]
[333968663,1722651072365,-3020.85,0.00017533,2]
[333968664,1722651072375,-3359.34,0.00017533,2]
[333968665,1722651072385,-997.06,0.00017533,2]
[333968666,1722651072394,-1101.36,0.00017533,2]
[333968667,1722651072404,-7668.12,0.00017533,2]
[333968668,1722651072413,-11691.75,0.00017533,2]
[333968669,1722651072423,-617.21,0.00017533,2]
[333968670,1722651072433,-1210.57,0.00017533,2]
[333968671,1722651072442,-1250.74,0.00017533,2]
[333968672,1722651072451,-1689.42,0.00017533,2]
[333968673,1722651072460,-2167.57,0.00017533,2]
[333968674,1722651072470,-1045.54,0.00017533,2]
[333968675,1722651072479,-2195.63,0.00017533,2]
[333968676,1722651072489,-500.0,0.00017534,2]
[333968677,1722651072498,-500.0,0.00017534,2]
[333968678,1722651072507,-500.0,0.00017534,2]
[333968679,1722651072518,-574.11,0.00017534,2]
[333968680,1722651072527,-500.0,0.00017534,2]
[333968681,1722651072536,-758.37,0.00017534,2]
[333968682,1722651072545,-500.0,0.00017534,2]
[333968683,1722651072555,-500.0,0.00017534,2]
[333968684,1722651072564,-582.99,0.00017534,2]
[333968685,1722651072573,-500.0,0.00017534,2]
[333968686,1722651072582,-500.0,0.00017534,2]
[333968687,1722651072591,-500.0,0.00017534,2]
[333968688,1722651072697,-500.0,0.00017534,2]
[333968689,1722651072706,-500.0,0.00017534,2]
[333968690,1722651072715,-500.0,0.00017534,2]
[333968691,1722651072725,-500.0,0.00017534,2]
[333968692,1722651072734,-500.0,0.00017534,2]
[333968693,1722651072743,-843.93,0.00017534,2]
[333968694,1722651072752,-500.0,0.00017534,2]
[333968695,1722651072763,-500.0,0.00017534,2]
[333968696,1722651072781,-500.0,0.00017534,2]
[333968697,1722651072790,-603.02,0.00017534,2]
[333968698,1722651072799,-205.52696562,0.00017534,2]
[333968699,1722651072817,-268.25,0.00017534,2]
[333968700,1722651072828,-299.07844765,0.00017534,2]
[333968701,1722651072839,-223.65458673,0.00017534,2]
[333968702,1722651072849,-646.27,0.00017534,2]
[333968703,1722651072860,-806.2,0.00017534,2]
[333968704,1722651072870,-500.0,0.00017534,2]
[333968705,1722651072878,-528.59,0.00017534,2]
[333968706,1722651072888,-500.0,0.00017534,2]
[333968707,1722651072897,-500.0,0.00017534,2]
[333968708,1722651072907,-500.0,0.00017534,2]
[333968709,1722651072915,-872.86,0.00017534,2]
[333968710,1722651072925,-500.0,0.00017534,2]
[333968711,1722651072934,-924.27,0.00017534,2]
[333968712,1722651072944,-518.62,0.00017534,2]
[333968713,1722651072953,-500.0,0.00017534,2]
[333968714,1722651072966,-525.8004761,0.00017534,2]
[333968715,1722651073135,-18.7195239,0.00017534,2]
[333968716,1722651073145,-500.0,0.00017534,2]
[333968717,1722651073155,-500.0,0.00017534,2]
[333968718,1722651073164,-110.03544106,0.00017534,2]
[333968719,1722651073176,-389.96455894,0.00017534,2]
[333968720,1722651073185,-403.63544866,0.00017534,2]
[333968721,1722651073196,-96.36455134,0.00017534,2]
[333968722,1722651073206,-500.0,0.00017534,2]
[333968723,1722651073215,-1105.48,0.00017534,2]
[333968724,1722651073224,-500.0,0.00017534,2]
[333968725,1722651073233,-539.48,0.00017534,2]
[333968726,1722651073243,-941.91,0.00017534,2]
[333968727,1722651073251,-500.0,0.00017534,2]
[333968728,1722651073263,-500.0,0.00017534,2]
[333968729,1722651073273,-500.0,0.00017534,2]
[333968730,1722651073282,-625.91,0.00017534,2]
[333968731,1722651073291,-500.0,0.00017534,2]
[333968732,1722651073301,-531.34,0.00017534,2]
[333968733,1722651073310,-500.0,0.00017534,2]
[333968734,1722651073320,-650.56,0.00017534,2]
[333968735,1722651073329,-500.0,0.00017534,2]
[333968736,1722651073339,-500.0,0.00017534,2]
[333968737,1722651073348,-500.0,0.00017534,2]
[333968738,1722651073357,-901.7,0.00017534,2]
[333968739,1722651073367,-552.17,0.00017534,2]
[333968740,1722651073376,-845.42,0.00017534,2]
[333968741,1722651073385,-500.0,0.00017534,2]
[333968742,1722651073394,-500.0,0.00017534,2]
[333968743,1722651073404,-993.64,0.00017534,2]
[333968744,1722651073413,-500.0,0.00017534,2]
[333968745,1722651073423,-615.75,0.00017534,2]
[333968746,1722651073432,-500.0,0.00017534,2]
[333968747,1722651073441,-500.0,0.00017534,2]
[333968748,1722651073451,-500.0,0.00017534,2]
[333968749,1722651073462,-500.0,0.00017534,2]
[333968750,1722651073472,-500.0,0.00017534,2]
[333968751,1722651073481,-789.97,0.00017534,2]
[333968752,1722651073491,-741.33,0.00017534,2]
[333968753,1722651073500,-500.0,0.00017534,2]
[333968754,1722651073509,-500.0,0.00017534,2]
[333968755,1722651073521,-500.0,0.00017534,2]
[333968756,1722651073530,-500.0,0.00017534,2]
[333968757,1722651073539,-500.0,0.00017534,2]
[333968758,1722651073549,-500.0,0.00017534,2]
[333968759,1722651073558,-500.0,0.00017534,2]
[333968760,1722651073568,-500.0,0.00017534,2]
[333968761,1722651073578,-912.85,0.00017534,2]
[333968762,1722651073588,-1013.37,0.00017534,2]
[333968763,1722651073597,-500.0,0.00017534,2]
[333968764,1722651073608,-586.68,0.00017534,2]
[333968765,1722651073617,-1181.36,0.00017534,2]
[333968766,1722651073627,-603.55,0.00017534,2]
[333968767,1722651073637,-513.24,0.00017534,2]
[333968768,1722651073646,-845.25,0.00017534,2]
[333968769,1722651073656,-500.0,0.00017534,2]
[333968770,1722651073666,-500.0,0.00017534,2]
[333968771,1722651073677,-963.75,0.00017534,2]
[333968772,1722651073686,-500.0,0.00017534,2]
[333968773,1722651073696,-500.0,0.00017534,2]
[333968774,1722651073705,-500.0,0.00017534,2]
[333968775,1722651073714,-500.0,0.00017534,2]
[333968776,1722651073723,-500.0,0.00017534,2]
[333968777,1722651073732,-742.08,0.00017534,2]
[333968778,1722651073741,-500.0,0.00017534,2]
[333968779,1722651073750,-591.66,0.00017534,2]
[333968780,1722651073759,-1305.01,0.00017534,2]
[333968781,1722651073771,-677.98,0.00017534,2]
[333968782,1722651073780,-588.58,0.00017534,2]
[333968783,1722651073790,-1249.82,0.00017534,2]
[333968784,1722651073799,-500.0,0.00017534,2]
[333968785,1722651073808,-500.0,0.00017534,2]
[333968786,1722651073817,-500.0,0.00017534,2]
[333968787,1722651073826,-500.0,0.00017534,2]
[333968788,1722651073835,-1077.22,0.00017534,2]
[333968789,1722651073846,-500.0,0.00017534,2]
[333968790,1722651073855,-500.0,0.00017534,2]
[333968791,1722651073864,-557.62,0.00017534,2]
[333968792,1722651073873,-278.2548049,0.00017534,2]
[333968793,1722651073882,-550.88,0.00017534,2]
[333968794,1722651073892,-1061.37,0.00017534,2]
[333968795,1722651073901,-580.68,0.00017534,2]
[333968796,1722651073911,-551.86,0.00017534,2]
[333968797,1722651073921,-500.0,0.00017534,2]
[333968798,1722651073930,-500.0,0.00017534,2]
[333968799,1722651073939,-651.09,0.00017534,2]
[333968800,1722651073948,-646.73,0.00017534,2]
[333968801,1722651073957,-1295.65,0.00017534,2]
[333968802,1722651073966,-500.0,0.00017534,2]
[333968803,1722651073975,-500.0,0.00017534,2]
[333968804,1722651073984,-767.14,0.00017534,2]
[333968805,1722651073993,-507.6,0.00017534,2]
[333968806,1722651074002,-673.72,0.00017534,2]
[333968807,1722651074012,-1154.21,0.00017534,2]
[333968808,1722651074022,-500.0,0.00017534,2]
[333968809,1722651074033,-500.0,0.00017534,2]
[333968810,1722651074042,-627.81,0.00017534,2]
[333968811,1722651074051,-500.0,0.00017534,2]
[333968812,1722651074060,-500.0,0.00017534,2]
[333968813,1722651074069,-500.0,0.00017534,2]
[333968814,1722651074079,-425.67544971,0.00017534,2]
[333968815,1722651074095,-74.32455029,0.00017534,2]
[333968816,1722651074105,-473.11544971,0.00017534,2]
[333968817,1722651074116,-26.88455029,0.00017534,2]
[333968818,1722651074125,-1211.48,0.00017534,2]
[333968819,1722651074134,-500.0,0.00017534,2]
[333968820,1722651074143,-176.11195971,0.00017534,2]
[333968821,1722651074154,-323.88804029,0.00017534,2]
[333968822,1722651074163,-512.86,0.00017534,2]
[333968823,1722651074172,-500.0,0.00017534,2]
[333968824,1722651074181,-500.0,0.00017534,2]
[333968825,1722651074191,-500.0,0.00017534,2]
[333968826,1722651074200,-500.0,0.00017534,2]
[333968827,1722651074209,-500.0,0.00017534,2]
[333968828,1722651074218,-1069.49,0.00017534,2]
[333968829,1722651074227,-500.0,0.00017534,2]
[333968830,1722651074237,-500.0,0.00017534,2]
[333968831,1722651074246,-500.0,0.00017534,2]
[333968832,1722651074255,-500.0,0.00017534,2]
[333968833,1722651074265,-500.0,0.00017534,2]
[333968834,1722651074274,-1261.38,0.00017534,2]
[333968835,1722651074283,-500.0,0.00017534,2]
[333968836,1722651074293,-176.30671273,0.00017534,2]
[333968837,1722651074305,-334.765,0.00017534,2]
[333968838,1722651074315,-439.10650932,0.00017534,2]
[333968839,1722651074327,-268.22177795,0.00017534,2]
[333968840,1722651074336,-500.0,0.00017534,2]
[333968841,1722651074345,-500.0,0.00017534,2]
[333968842,1722651074355,-777.91,0.00017534,2]
[333968843,1722651074364,-500.0,0.00017534,2]
[333968844,1722651074373,-500.0,0.00017534,2]
[333968845,1722651074383,-161.08321319,0.00017534,2]
[333968846,1722651074394,-338.91678681,0.00017534,2]
[333968847,1722651074403,-500.0,0.00017534,2]
[333968848,1722651074412,-500.0,0.00017534,2]
[333968849,1722651074421,-500.0,0.00017534,2]
[333968850,1722651074430,-579.3,0.00017534,2]
[333968851,1722651074439,-1024.5,0.00017534,2]
[333968852,1722651074450,-877.79,0.00017534,2]
[333968853,1722651074459,-776.25,0.00017534,2]
[333968854,1722651074469,-500.0,0.00017534,2]
[333968855,1722651074479,-151.0,0.00017534,2]
[333968856,1722651074488,-500.0,0.00017534,2]
[333968857,1722651074498,-500.0,0.00017534,2]
[333968858,1722651074507,-505.19,0.00017534,2]
[333968859,1722651074517,-500.0,0.00017534,2]
[333968860,1722651074526,-457.84156312,0.00017534,2]
[333968861,1722651074539,-42.15843688,0.00017534,2]
[333968862,1722651074548,-500.0,0.00017534,2]
[333968863,1722651074558,-500.0,0.00017534,2]
[333968864,1722651074567,-67.96711102,0.00017534,2]
[333968865,1722651074579,-432.03288898,0.00017534,2]
[333968866,1722651074589,-613.45,0.00017534,2]
[333968867,1722651074598,-92.12601205,0.00017534,2]
[333968868,1722651074609,-407.87398795,0.00017534,2]
[333968869,1722651074619,-500.0,0.00017534,2]
[333968870,1722651074629,-123.703149,0.00017534,2]
[333968871,1722651074640,-672.766851,0.00017534,2]
[333968872,1722651074649,-500.0,0.00017534,2]
[333968873,1722651074659,-502.92,0.00017534,2]
[333968874,1722651074668,-500.0,0.00017534,2]
[333968875,1722651074678,-1557.68,0.00017534,2]
[333968876,1722651074687,-1034.64,0.00017534,2]
[333968877,1722651074696,-785.43,0.00017534,2]
[333968878,1722651074706,-1344.34,0.00017534,2]
[333968879,1722651074715,-722.02,0.00017534,2]
[333968880,1722651074724,-500.0,0.00017534,2]
[333968881,1722651074734,-1325.29,0.00017534,2]
[333968882,1722651074743,-500.0,0.00017534,2]
[333968883,1722651074752,-500.0,0.00017534,2]
[333968884,1722651074761,-500.0,0.00017534,2]
[333968885,1722651074775,-500.0,0.00017534,2]
[333968886,1722651074784,-500.0,0.00017534,2]
[333968887,1722651074794,-1277.95,0.00017534,2]
[333968888,1722651074803,-500.0,0.00017534,2]
[333968889,1722651074813,-1525.95,0.00017534,2]
[333968890,1722651074822,-500.0,0.00017534,2]
[333968891,1722651074832,-500.0,0.00017534,2]
[333968892,1722651074842,-528.47,0.00017534,2]
[333968893,1722651074851,-1097.79,0.00017534,2]
[333968894,1722651074860,-857.17,0.00017534,2]
[333968895,1722651074869,-500.0,0.00017534,2]
[333968896,1722651074879,-810.13,0.00017534,2]
[333968897,1722651074888,-500.0,0.00017534,2]
[333968898,1722651074897,-500.0,0.00017534,2]
[333968899,1722651074907,-500.0,0.00017534,2]
[333968900,1722651074916,-504.63,0.00017534,2]
[333968901,1722651074925,-500.0,0.00017534,2]
[333968902,1722651074934,-500.0,0.00017534,2]
[333968903,1722651074944,-500.0,0.00017534,2]
[333968904,1722651074953,-500.0,0.00017534,2]
[333968905,1722651074962,-1756.89,0.00017534,2]
[333968906,1722651074972,-500.0,0.00017534,2]
[333968907,1722651074981,-500.0,0.00017534,2]
[333968908,1722651074990,-500.0,0.00017534,2]
[333968909,1722651075000,-993.34,0.00017534,2]
[333968910,1722651075009,-500.0,0.00017534,2]
[333968911,1722651075019,-500.0,0.00017534,2]
[333968912,1722651075029,-1211.32,0.00017534,2]
[333968913,1722651075038,-500.0,0.00017534,2]
[333968914,1722651075047,-1084.87,0.00017534,2]
[333968915,1722651075056,-560.58848719,0.00017534,2]
[333968916,1722651075065,-947.53,0.00017534,2]
[333968917,1722651075074,-879.82,0.00017534,2]
[333968918,1722651075083,-705.8,0.00017534,2]
[333968919,1722651075092,-500.0,0.00017534,2]
[333968920,1722651075103,-500.0,0.00017534,2]
[333968921,1722651075112,-1354.25,0.00017534,2]
[333968922,1722651075122,-784.1,0.00017534,2]
[333968923,1722651075133,-500.0,0.00017534,2]
[333968924,1722651075142,-698.62,0.00017534,2]
[333968925,1722651075152,-707.56,0.00017534,2]
[333968926,1722651075161,-500.0,0.00017534,2]
[333968927,1722651075170,-946.22,0.00017534,2]
[333968928,1722651075179,-927.25,0.00017534,2]
[333968929,1722651075189,-657.15,0.00017534,2]
[333968930,1722651075198,-858.16,0.00017534,2]
[333968931,1722651075207,-500.0,0.00017534,2]
[333968932,1722651075217,-500.0,0.00017534,2]
[333968933,1722651075226,-961.52,0.00017534,2]
[333968934,1722651075236,-500.0,0.00017534,2]
[333968935,1722651075245,-500.0,0.00017534,2]
[333968936,1722651075255,-848.5,0.00017534,2]
[333968937,1722651075266,-500.0,0.00017534,2]
[333968938,1722651075275,-1026.21,0.00017534,2]
[333968939,1722651075285,-812.5,0.00017534,2]
[333968940,1722651075294,-500.0,0.00017534,2]
[333968941,1722651075303,-500.0,0.00017534,2]
[333968942,1722651075312,-500.0,0.00017534,2]
[333968943,1722651075321,-500.0,0.00017534,2]
[333968944,1722651075330,-861.53,0.00017534,2]
[333968945,1722651075340,-500.0,0.00017534,2]
[333968946,1722651075350,-584.29,0.00017534,2]
[333968947,1722651075360,-500.0,0.00017534,2]
[333968948,1722651075370,-500.0,0.00017534,2]
[333968949,1722651075379,-500.0,0.00017534,2]
[333968950,1722651075389,-500.0,0.00017534,2]
[333968951,1722651075398,-625.23,0.00017534,2]
[333968952,1722651075408,-959.41,0.00017534,2]
[333968953,1722651075417,-500.0,0.00017534,2]
[333968954,1722651075427,-500.0,0.00017534,2]
[333968955,1722651075436,-1024.08,0.00017534,2]
[333968956,1722651075446,-500.0,0.00017534,2]
[333968957,1722651075456,-1192.68,0.00017534,2]
[333968958,1722651075466,-885.45,0.00017534,2]
[333968959,1722651075475,-612.63,0.00017534,2]
[333968960,1722651075485,-500.0,0.00017534,2]
[333968961,1722651075494,-1070.93,0.00017534,2]
[333968962,1722651075504,-791.32,0.00017534,2]
[333968963,1722651075514,-1340.04,0.00017534,2]
[333968964,1722651075523,-1107.77,0.00017534,2]
[333968965,1722651075533,-509.26,0.00017534,2]
[333968966,1722651075543,-500.0,0.00017534,2]
[333968967,1722651075553,-500.0,0.00017534,2]
[333968968,1722651075562,-801.03,0.00017534,2]
[333968969,1722651075571,-500.0,0.00017534,2]
[333968970,1722651075580,-456.03814368,0.00017534,2]
[333968971,1722651075590,-500.0,0.00017534,2]
[333968972,1722651075599,-500.0,0.00017534,2]